fUSD/lending_fUSD_20241216
["ID","MTS","AMOUNT","RATE_DAILY","PERIOD"]
[345539481,1734321071892,-500.0,0.00022499,3]
[345539482,1734321071901,-1361.86,0.00022499,3]
[345539483,1734321071911,-1361.86,0.00022499,3]
[345539484,1734321071921,-1361.86,0.00022499,3]
[345539485,1734321071932,-1361.86,0.00022499,3]
[345539486,1734321071951,-1361.86,0.00022499,3]
[345539487,1734321071963,-1361.86,0.00022499,3]
[345539488,1734321071973,-500.0,0.00022499,3]
[345539489,1734321071983,-1361.86,0.00022499,3]
[345539490,1734321071993,-500.0,0.00022499,3]
[345539491,1734321072003,-1361.86,0.00022499,3]
[345539492,1734321072015,-500.0,0.00022499,3]
[345539493,1734321072026,-500.0,0.00022499,3]
[345539494,1734321072035,-1361.86,0.00022499,3]
[345539495,1734321072045,-1361.86,0.00022499,3]
[345539496,1734321072054,-1361.86433345,0.00022499,3]
[345539497,1734321072064,-506.73272022,0.00022499,3]
[345539498,1734321072074,-779.35,0.00022499,3]
[345539499,1734321072083,-779.35,0.00022499,3]
[345539500,1734321072094,-779.35,0.00022499,3]
[345539501,1734321072104,-779.35,0.00022499,3]
[345539502,1734321072113,-500.0,0.00022499,3]
[345539503,1734321072123,-779.35,0.00022499,3]
[345539504,1734321072133,-500.0,0.00022499,3]
[345539505,1734321072143,-779.35,0.00022499,3]
[345539506,1734321072153,-500.0,0.00022499,3]
[345539507,1734321072163,-779.35,0.00022499,3]
[345539508,1734321072172,-500.0,0.00022499,3]
[345539509,1734321072182,-779.35,0.00022499,3]
[345539510,1734321072191,-779.35,0.00022499,3]
[345539511,1734321072208,-500.0,0.00022499,3]
[345539512,1734321072218,-779.35,0.00022499,3]
[345539513,1734321072228,-779.35,0.00022499,3]
[345539514,1734321072238,-500.0,0.00022499,3]
[345539515,1734321072247,-779.35,0.00022499,3]
[345539516,1734321072256,-779.35,0.00022499,3]
[345539517,1734321072266,-643.48470637,0.00022499,3]
[345539518,1734321072275,-779.35,0.00022499,3]
[345539519,1734321072285,-779.35,0.00022499,3]
[345539520,1734321072295,-779.35,0.00022499,3]
[345539521,1734321072304,-779.51374529,0.00022499,3]
[345539522,1734321072314,-207.52844878,0.00022499,3]
[345539523,1734321072324,-500.0,0.00022499,3]
[345539524,1734321072334,-500.0,0.00022499,3]
[345539525,1734321072344,-500.0,0.00022499,3]
[345539526,1734321072353,-500.0,0.00022499,3]
[345539527,1734321072364,-500.0,0.00022499,3]
[345539528,1734321072373,-500.0,0.00022499,3]
[345539529,1734321072383,-500.0,0.00022499,3]
[345539530,1734321072394,-500.0,0.00022499,3]
[345539531,1734321072403,-500.0,0.00022499,3]
[345539532,1734321072413,-500.0,0.00022499,3]
[345539533,1734321072423,-500.0,0.00022499,3]
[345539534,1734321072433,-500.0,0.00022499,3]
[345539535,1734321072447,-500.0,0.00022499,3]
[345539536,1734321072457,-500.0,0.00022499,3]
[345539537,1734321072467,-500.0,0.00022499,3]
[345539538,1734321072478,-233.29487894,0.00022499,3]
[345539539,1734321072488,-500.0,0.00022499,3]
[345539540,1734321072498,-500.0,0.00022499,3]
[345539541,1734321072508,-500.0,0.00022499,3]
[345539542,1734321072519,-500.0,0.00022499,3]
[345539543,1734321072633,-500.0,0.00022499,3]
[345539544,1734321072643,-500.0,0.00022499,3]
[345539545,1734321072654,-500.0,0.00022499,3]
[345539546,1734321072664,-500.0,0.00022499,3]
[345539547,1734321072673,-500.0,0.00022499,3]
[345539548,1734321072683,-500.0,0.00022499,3]
[345539549,1734321072693,-500.0,0.00022499,3]
[345539550,1734321072708,-500.0,0.00022499,3]
[345539551,1734321072719,-182.08318522,0.00022499,3]
[345539552,1734321072729,-594.81674784,0.00022499,3]
[345539553,1734321072738,-500.0,0.00022499,3]
[345539554,1734321072748,-500.0,0.00022499,3]
[345539555,1734321072757,-500.0,0.00022499,3]
[345539556,1734321072766,-162.25389354,0.00022499,3]
[345539557,1734321072775,-500.0,0.00022499,3]
[345539558,1734321072784,-500.0,0.00022499,3]
[345539559,1734321072794,-500.0,0.00022499,3]
[345539560,1734321072803,-500.0,0.00022499,3]
[345539561,1734321072813,-500.0,0.00022499,3]
[345539562,1734321072823,-500.0,0.00022499,3]
[345539563,1734321072832,-522.84802233,0.00022499,3]
[345539564,1734321072843,-647.0821509,0.00022499,3]
[345539565,1734321072853,-500.0,0.00022499,3]
[345539566,1734321072863,-500.0,0.00022499,3]
[345539567,1734321072873,-500.0,0.00022499,3]
[345539568,1734321072883,-500.0,0.00022499,3]
[345539569,1734321072892,-500.0,0.00022499,3]
[345539570,1734321072902,-500.0,0.00022499,3]
[345539571,1734321072912,-394.72447443,0.00022499,3]
[345539572,1734321072922,-328.58304877,0.00022499,3]
[345539573,1734321072934,-500.0,0.00022499,3]
[345539574,1734321072952,-500.0,0.00022499,3]
[345539575,1734321072963,-500.0,0.00022499,3]
[345539576,1734321072974,-500.0,0.00022499,3]
[345539577,1734321072984,-500.0,0.00022499,3]
[345539578,1734321072993,-500.0,0.00022499,3]
[345539579,1734321073003,-500.0,0.00022499,3]
[345539580,1734321073013,-500.0,0.00022499,3]
[345539581,1734321073024,-500.0,0.00022499,3]
[345539582,1734321073033,-500.0,0.00022499,3]
[345539583,1734321073042,-500.0,0.00022499,3]
[345539584,1734321073052,-500.0,0.00022499,3]
[345539585,1734321073061,-500.0,0.00022499,3]
[345539586,1734321073071,-500.0,0.00022499,3]
[345539587,1734321073080,-692.46,0.00022499,3]
[345539588,1734321073089,-426.44351102,0.00022499,3]
[345539589,1734321073098,-500.0,0.00022499,3]
[345539590,1734321073107,-692.46,0.00022499,3]
[345539591,1734321073117,-515.41507831,0.00022499,3]
[345539592,1734321073127,-692.46,0.00022499,3]
[345539593,1734321073136,-692.46,0.00022499,3]
[345539594,1734321073146,-692.46,0.00022499,3]
[345539595,1734321073155,-592.11,0.00022499,3]
[345539596,1734321073164,-592.11,0.00022499,3]
[345539597,1734321073174,-692.46,0.00022499,3]
[345539598,1734321073184,-592.11,0.00022499,3]
[345539599,1734321073198,-592.11,0.00022499,3]
[345539600,1734321073208,-692.46,0.00022499,3]
[345539601,1734321073217,-592.11,0.00022499,3]
[345539602,1734321073227,-500.0,0.00022499,3]
[345539603,1734321073236,-592.11,0.00022499,3]
[345539604,1734321073246,-692.46,0.00022499,3]
[345539605,1734321073256,-592.11,0.00022499,3]
[345539606,1734321073266,-692.46,0.00022499,3]
[345539607,1734321073276,-500.0,0.00022499,3]
[345539608,1734321073286,-592.11,0.00022499,3]
[345539609,1734321073296,-692.46,0.00022499,3]
[345539610,1734321073306,-592.11,0.00022499,3]
[345539611,1734321073315,-692.46,0.00022499,3]
[345539612,1734321073325,-592.11,0.00022499,3]
[345539613,1734321073339,-592.11,0.00022499,3]
[345539614,1734321073349,-692.46,0.00022499,3]
[345539615,1734321073359,-592.11,0.00022499,3]
[345539616,1734321073369,-692.46,0.00022499,3]
[345539617,1734321073378,-592.11,0.00022499,3]
[345539618,1734321073388,-692.46,0.00022499,3]
[345539619,1734321073398,-592.11,0.00022499,3]
[345539620,1734321073408,-692.46,0.00022499,3]
[345539621,1734321073418,-592.11,0.00022499,3]
[345539622,1734321073428,-592.11,0.00022499,3]
[345539623,1734321073438,-692.46,0.00022499,3]
[345539624,1734321073451,-592.22701087,0.00022499,3]
[345539625,1734321073460,-692.46,0.00022499,3]
[345539626,1734321073469,-692.46,0.00022499,3]
[345539627,1734321073479,-692.46,0.00022499,3]
[345539628,1734321073490,-500.0,0.00022499,3]
[345539629,1734321073499,-500.0,0.00022499,3]
[345539630,1734321073509,-692.46,0.00022499,3]
[345539631,1734321073518,-552.64483512,0.00022499,3]
[345539632,1734321073527,-692.46,0.00022499,3]
[345539633,1734321073537,-692.49948943,0.00022499,3]
[345539634,1734321073547,-526.64,0.00022499,3]
[345539635,1734321073557,-526.64,0.00022499,3]
[345539636,1734321073568,-526.64,0.00022499,3]
[345539637,1734321073578,-526.64,0.00022499,3]
[345539638,1734321073587,-526.64,0.00022499,3]
[345539639,1734321073597,-526.64,0.00022499,3]
[345539640,1734321073607,-670.74,0.00022499,3]
[345539641,1734321073617,-526.64,0.00022499,3]
[345539642,1734321073626,-670.74,0.00022499,3]
[345539643,1734321073635,-1480.69,0.00022499,3]
[345539644,1734321073644,-526.64,0.00022499,3]
[345539645,1734321073654,-670.74,0.00022499,3]
[345539646,1734321073664,-1480.69,0.00022499,3]
[345539647,1734321073674,-526.64,0.00022499,3]
[345539648,1734321073683,-670.74,0.00022499,3]
[345539649,1734321073693,-1480.69,0.00022499,3]
[345539650,1734321073704,-526.64,0.00022499,3]
[345539651,1734321073714,-1480.69,0.00022499,3]
[345539652,1734321073724,-526.64,0.00022499,3]
[345539653,1734321073734,-670.74,0.00022499,3]
[345539654,1734321073743,-526.64,0.00022499,3]
[345539655,1734321073753,-670.74,0.00022499,3]
[345539656,1734321073763,-1480.69,0.00022499,3]
[345539657,1734321073773,-670.74,0.00022499,3]
[345539658,1734321073783,-1480.69,0.00022499,3]
[345539659,1734321073792,-526.64,0.00022499,3]
[345539660,1734321073803,-500.0,0.00022499,3]
[345539661,1734321073813,-670.74,0.00022499,3]
[345539662,1734321073822,-526.64,0.00022499,3]
[345539663,1734321073833,-514.02223892,0.00022499,3]
[345539664,1734321073843,-670.74,0.00022499,3]
[345539665,1734321073854,-526.64,0.00022499,3]
[345539666,1734321073863,-1480.69,0.00022499,3]
[345539667,1734321073872,-670.74,0.00022499,3]
[345539668,1734321073881,-526.64,0.00022499,3]
[345539669,1734321073890,-1480.69,0.00022499,3]
[345539670,1734321073899,-500.0,0.00022499,3]
[345539671,1734321073909,-670.74,0.00022499,3]
[345539672,1734321073918,-526.64,0.00022499,3]
[345539673,1734321073927,-1480.69,0.00022499,3]
[345539674,1734321073940,-500.0,0.00022499,3]
[345539675,1734321073954,-670.74,0.00022499,3]
[345539676,1734321073963,-500.0,0.00022499,3]
[345539677,1734321073975,-1480.69,0.00022499,3]
[345539678,1734321073984,-500.0,0.00022499,3]
[345539679,1734321073994,-500.0,0.00022499,3]
[345539680,1734321074003,-526.72197097,0.00022499,3]
[345539681,1734321074014,-500.0,0.00022499,3]
[345539682,1734321074024,-670.74,0.00022499,3]
[345539683,1734321074034,-1480.69,0.00022499,3]
[345539684,1734321074044,-500.0,0.00022499,3]
[345539685,1734321074054,-500.0,0.00022499,3]
[345539686,1734321074063,-670.74,0.00022499,3]
[345539687,1734321074073,-1480.69,0.00022499,3]
[345539688,1734321074083,-501.94704798,0.00022499,3]
[345539689,1734321074093,-500.0,0.00022499,3]
[345539690,1734321074103,-1480.69,0.00022499,3]
[345539691,1734321074112,-670.74,0.00022499,3]
[345539692,1734321074122,-500.0,0.00022499,3]
[345539693,1734321074132,-670.74,0.00022499,3]
[345539694,1734321074142,-1480.69,0.00022499,3]
[345539695,1734321074151,-500.0,0.00022499,3]
[345539696,1734321074161,-670.74,0.00022499,3]
[345539697,1734321074170,-1480.69,0.00022499,3]
[345539698,1734321074180,-500.0,0.00022499,3]
[345539699,1734321074189,-1480.69,0.00022499,3]
[345539700,1734321074201,-500.0,0.00022499,3]
[345539701,1734321074211,-1480.69,0.00022499,3]
[345539702,1734321074220,-500.0,0.00022499,3]
[345539703,1734321074230,-1480.69,0.00022499,3]
[345539704,1734321074240,-500.0,0.00022499,3]
[345539705,1734321074249,-1480.69,0.00022499,3]
[345539706,1734321074259,-500.0,0.00022499,3]
[345539707,1734321074268,-1480.69,0.00022499,3]
[345539708,1734321074278,-500.0,0.00022499,3]
[345539709,1734321074288,-1480.69,0.00022499,3]
[345539710,1734321074298,-500.0,0.00022499,3]
[345539711,1734321074308,-640.43355709,0.00022499,3]
[345539712,1734321074318,-1480.7797,0.00022499,3]
[345539713,1734321074328,-500.0,0.00022499,3]
[345539714,1734321074337,-500.0,0.00022499,3]
[345539715,1734321074347,-500.0,0.00022499,3]
[345539716,1734321074357,-500.0,0.00022499,3]
[345539717,1734321074368,-206.46994685,0.00022499,3]
[345539718,1734321074470,-500.0,0.00022499,3]
[345539719,1734321074481,-500.0,0.00022499,3]
[345539720,1734321074490,-500.0,0.00022499,3]
[345539721,1734321074502,-500.0,0.00022499,3]
[345539722,1734321074512,-500.0,0.00022499,3]
[345539723,1734321074521,-500.0,0.00022499,3]
[345539724,1734321074531,-500.0,0.00022499,3]
[345539725,1734321074541,-500.0,0.00022499,3]
[345539726,1734321074551,-500.0,0.00022499,3]
[345539727,1734321074560,-500.0,0.00022499,3]
[345539728,1734321074570,-500.0,0.00022499,3]
[345539729,1734321074580,-500.0,0.00022499,3]
[345539730,1734321074589,-500.0,0.00022499,3]
[345539731,1734321074599,-500.0,0.00022499,3]
[345539732,1734321074608,-500.0,0.00022499,3]
[345539733,1734321074618,-500.0,0.00022499,3]
[345539734,1734321074627,-500.0,0.00022499,3]
[345539735,1734321074637,-500.0,0.00022499,3]
[345539736,1734321074646,-500.0,0.00022499,3]
[345539737,1734321074656,-500.0,0.00022499,3]
[345539738,1734321074665,-500.0,0.00022499,3]
[345539739,1734321074675,-500.0,0.00022499,3]
[345539740,1734321074684,-500.0,0.00022499,3]
[345539741,1734321074697,-500.0,0.00022499,3]
[345539742,1734321074706,-500.0,0.00022499,3]
[345539743,1734321074716,-356.32503104,0.00022499,3]
[345539744,1734321074725,-500.0,0.00022499,3]
[345539745,1734321074735,-500.0,0.00022499,3]
[345539746,1734321074744,-500.0,0.00022499,3]
[345539747,1734321074753,-500.0,0.00022499,3]
[345539748,1734321074762,-500.0,0.00022499,3]
[345539749,1734321074771,-305.78144131,0.00022499,3]
[345539750,1734321074781,-500.0,0.00022499,3]
[345539751,1734321074791,-500.0,0.00022499,3]
[345539752,1734321074800,-500.0,0.00022499,3]
[345539753,1734321074809,-500.0,0.00022499,3]
[345539754,1734321074819,-500.0,0.00022499,3]
[345539755,1734321074828,-500.0,0.00022499,3]
[345539756,1734321074838,-500.0,0.00022499,3]
[345539757,1734321074847,-500.0,0.00022499,3]
[345539758,1734321074858,-517.68793315,0.00022499,3]
[345539759,1734321074867,-500.0,0.00022499,3]
[345539760,1734321074876,-500.0,0.00022499,3]
[345539761,1734321074885,-500.0,0.00022499,3]
[345539762,1734321074894,-500.0,0.00022499,3]
[345539763,1734321074903,-500.0,0.00022499,3]
[345539764,1734321074912,-500.0,0.00022499,3]
[345539765,1734321074921,-500.0,0.00022499,3]
[345539766,1734321074933,-500.0,0.00022499,3]
[345539767,1734321074943,-500.0,0.00022499,3]
[345539768,1734321074954,-500.0,0.00022499,3]
[345539769,1734321074963,-500.0,0.00022499,3]
[345539770,1734321074973,-500.0,0.00022499,3]
[345539771,1734321074982,-500.0,0.00022499,3]
[345539772,1734321074991,-500.0,0.00022499,3]
[345539773,1734321075000,-500.0,0.00022499,3]
[345539774,1734321075011,-409.68256307,0.00022499,3]
[345539775,1734321075021,-500.0,0.00022499,3]
[345539776,1734321075030,-500.0,0.00022499,3]
[345539777,1734321075040,-3246.81,0.00022499,3]
[345539778,1734321075050,-500.0,0.00022499,3]
[345539779,1734321075061,-30000.0,0.000225,2]
[345539780,1734321075071,-220.43888951,0.000225,2]
[345539781,1734321075081,-9021490.28589854,0.000225,2]
[345539782,1734321075401,-2950.47584158,0.000225,2]
[345539783,1734321075414,-2002.9985114,0.000225,2]
[345539784,1734321075464,-341.38920963,0.00021917,3]
[345539785,1734321075476,-158.61079037,0.00021917,3]
[345539786,1734321075486,-298.13342273,0.00021917,3]
[345539787,1734321075496,-349.59578699,0.00022499,3]
[345539788,1734321075739,-975.93,0.00021578,2]
[345539789,1734321075749,-212.23667378,0.00021917,3]
[345539790,1734321075761,-287.76332622,0.00021917,3]
[345539791,1734321075770,-500.0,0.00021917,3]
[345539792,1734321075780,-500.0,0.00021917,3]
[345539793,1734321075789,-500.0,0.00021917,3]
[345539794,1734321075799,-500.0,0.00021917,3]
[345539795,1734321075809,-500.0,0.00021917,3]
[345539796,1734321075819,-500.0,0.00021917,3]
[345539797,1734321075828,-500.0,0.00022399,3]
[345539798,1734321075838,-500.0,0.00022498,3]
[345539799,1734321075848,-500.0,0.00022498,3]
[345539800,1734321075858,-500.0,0.00022498,3]
[345539801,1734321075868,-500.0,0.00022498,3]
[345539802,1734321075878,-150.40421301,0.00022499,3]
[345539803,1734321075887,-3246.81,0.00022499,3]
[345539804,1734321075897,-3246.81,0.00022499,3]
[345539805,1734321075907,-197.4199266,0.00022499,3]
[345539806,1734321075916,-3246.81,0.00022499,3]
[345539807,1734321075926,-3246.81,0.00022499,3]
[345539808,1734321075938,-919.89753417,0.00022499,3]
[345539809,1734321075952,-1206.40738947,0.00022499,3]
[345539810,1734321075964,-1120.50507636,0.00022499,3]
[345539811,1734321075974,-2824.29492373,0.00022499,3]
[345539812,1734321075985,-422.51507627,0.00022499,3]
[345539813,1734321075995,-406.80760324,0.00022499,3]
[345539814,1734321076126,-500.0,0.00021917,3]
[345539815,1734321076136,-504.87682835,0.00021917,3]
[345539816,1734321076146,-2840.00239676,0.00022499,3]
[345539817,1734321076155,-3246.81,0.00022499,3]
[345539818,1734321076164,-3246.81,0.00022499,3]
[345539819,1734321076174,-3246.81,0.00022499,3]
[345539820,1734321076183,-3246.81,0.00022499,3]
[345539821,1734321076193,-3246.81,0.00022499,3]
[345539822,1734321076203,-3246.81,0.00022499,3]
[345539823,1734321076213,-3246.81,0.00022499,3]
[345539824,1734321076222,-3246.81,0.00022499,3]
[345539825,1734321076231,-3246.81,0.00022499,3]
[345539826,1734321076240,-3246.87892068,0.00022499,3]
[345539827,1734321076250,-500.0,0.00022499,3]
[345539828,1734321076259,-500.0,0.00022499,3]
[345539829,1734321076268,-500.0,0.00022499,3]
[345539830,1734321076277,-500.0,0.00022499,3]
[345539831,1734321076286,-500.0,0.00022499,3]
[345539832,1734321076296,-793229.2812459,0.000225,2]
[345539833,1734321076307,-197727.27213067,0.000225,2]
[345539834,1734321076319,-2409.81208,0.000225,2]
[345539835,1734321270744,155.99,0.00010137,2]
[345539837,1734321580189,2500.0,0.00021,120]
[345539839,1734321981799,54946.0,0.00021,120]
[345539840,1734322051100,-387.35,0.00018864,2]
[345539841,1734322051120,-17000.0,0.00019498,2]
[345539842,1734322051141,-161.60340138,0.00020244,4]
[345539843,1734322051161,-280.1,0.00020489,2]
[345539844,1734322051182,-166.48,0.00020496,2]
[345539845,1734322051206,-269.59,0.00020524,2]
[345539846,1734322051227,-548.52,0.00020626,2]
[345539847,1734322051253,-250.0,0.00020641,2]
[345539848,1734322051275,-157.71,0.00020645,2]
[345539849,1734322051298,-1000.0,0.00020645,2]
[345539850,1734322051323,-152.16,0.00020909,2]
[345539851,1734322051346,-500.23,0.00021089,2]
[345539852,1734322051369,-387.35,0.00021128,2]
[345539853,1734322051393,-491.16,0.00021145,2]
[345539854,1734322051414,-176.04831301,0.00021151,2]
[345539855,1734322051435,-157.74162615,0.00021151,2]
[345539856,1734322051456,-652.93691841,0.00021186,2]
[345539857,1734322051480,-502.44,0.00021215,2]
[345539858,1734322051500,-176.04831301,0.00021233,2]
[345539859,1734322051522,-302.19,0.00021242,2]
[345539860,1734322051543,-499.31,0.00021242,2]
[345539861,1734322051566,-302.19,0.00021247,2]
[345539862,1734322051587,-302.19,0.00021253,2]
[345539863,1734322051610,-302.19,0.00021258,2]
[345539864,1734322051632,-157.74162615,0.0002126,2]
[345539865,1734322051656,-302.19,0.00021264,2]
[345539866,1734322051678,-302.19,0.00021269,2]
[345539867,1734322051701,-302.19,0.00021275,2]
[345539868,1734322051723,-302.19,0.00021281,2]
[345539869,1734322051744,-302.19,0.00021286,2]
[345539870,1734322051765,-873.126,0.00021286,2]
[345539871,1734322051786,-302.19,0.00021292,2]
[345539872,1734322051808,-302.19,0.00021297,2]
[345539873,1734322051828,-302.19,0.00021303,2]
[345539874,1734322051849,-302.19,0.00021309,2]
[345539875,1734322051871,-302.19,0.00021314,2]
[345539876,1734322051892,-302.19,0.0002132,2]
[345539877,1734322051913,-302.19,0.00021325,2]
[345539878,1734322051933,-302.19,0.00021331,2]
[345539879,1734322051953,-302.19,0.00021337,2]
[345539880,1734322051973,-302.19,0.00021342,2]
[345539881,1734322051993,-176.04831301,0.00021342,2]
[345539882,1734322052014,-302.19,0.00021348,2]
[345539883,1734322052034,-157.74162615,0.0002137,2]
[345539884,1734322052056,-537.532,0.0002137,2]
[345539885,1734322052077,-1012.96,0.00021397,2]
[345539886,1734322052097,-176.04831301,0.00021452,2]
[345539887,1734322052117,-157.74162615,0.00021479,2]
[345539888,1734322052136,-269.59,0.0002155,2]
[345539889,1734322052156,-176.04831301,0.00021562,2]
[345539890,1734322052176,-157.74162615,0.00021589,2]
[345539891,1734322052196,-176.04831301,0.00021644,2]
[345539892,1734322052216,-152.16,0.00021683,2]
[345539893,1734322052239,-157.74162615,0.00021699,2]
[345539894,1734322052258,-1049.75647368,0.00021717,2]
[345539895,1734322052278,-150.0,0.00021734,2]
[345539896,1734322052302,-176.04831301,0.00021753,2]
[345539897,1734322052330,-2161.6512,0.000218,2]
[345539898,1734322052354,-157.74162615,0.00021808,2]
[345539899,1734322052376,-11917.3831,0.00021817,2]
[345539900,1734322052400,-310.5907,0.00021817,2]
[345539901,1734322052426,-1457.12950078,0.00021817,2]
[345539902,1734322052451,-1588.0,0.00021825,2]
[345539903,1734322052476,-1049.75647366,0.00021854,2]
[345539904,1734322052500,-1000.0,0.00021862,2]
[345539905,1734322052524,-176.04831301,0.00021863,2]
[345539906,1734322052548,-1457.12950071,0.00021882,2]
[345539907,1734322052576,-425.26,0.000219,2]
[345539908,1734322052600,-200.0,0.000219,2]
[345539909,1734322052623,-167.56,0.00021911,2]
[345539910,1734322052648,-1013.99,0.00021917,2]
[345539911,1734322052673,-500.84616381,0.00021917,3]
[345539912,1734322052697,-500.0,0.00021917,3]
[345539913,1734322052724,-21.70894898,0.00021917,3]
[345539914,1734322138921,207.61,0.00010137,2]
[345539919,1734322208002,153.21002,0.00019178,2]
[345539920,1734322213576,151.964844,0.00019178,2]
[345539921,1734322213902,151.964844,0.00019178,2]
[345539922,1734322213970,151.590925,0.00019178,2]
[345539923,1734322214251,151.964844,0.00019488,3]
[345539924,1734322214299,151.590925,0.00019488,3]
[345539925,1734322214557,151.964844,0.00019499,3]
[345539926,1734322214864,151.964844,0.00019694,3]
[345539927,1734322214892,151.590925,0.00019489,3]
[345539928,1734322215159,151.590925,0.00019694,3]
[345539931,1734322231616,-151.964844,0.00019774,3]
[345539932,1734322231626,-151.590925,0.00019785,3]
[345539933,1734322231635,-151.964844,0.0001979,3]
[345539934,1734322231645,-21.51786432,0.00019874,3]
[345539935,1734322231656,-130.07306068,0.00019874,3]
[345539936,1734322231666,-151.964844,0.00019877,3]
[345539937,1734322231675,-151.964844,0.00019899,3]
[345539938,1734322231685,-151.590925,0.00019899,3]
[345539939,1734322231694,-151.964844,0.00019993,3]
[345539940,1734322231704,-151.590925,0.00019995,3]
[345539941,1734322231714,-151.964844,0.00019996,3]
[345539942,1734322231724,-503.07,0.00021043,2]
[345539943,1734322231733,-152.16,0.00021071,2]
[345539944,1734322231743,-161.95,0.00021244,30]
[345539945,1734322231752,-502.33,0.00021418,2]
[345539946,1734322231762,-490.59,0.00021526,2]
[345539947,1734322231771,-501.75,0.00021664,2]
[345539948,1734322231781,-150.0,0.00021897,2]
[345539949,1734322231791,-382.73,0.000219,2]
[345539950,1734322231800,-100344.30571332,0.000219,2]
[345539951,1734322235314,-600.0,0.000219,2]
[345539952,1734322235327,-518.94,0.000219,2]
[345539953,1734322235339,-375.839991,0.000219,2]
[345539969,1734322237515,-2403.8950303,0.000219,2]
[345539970,1734322237527,-782.55999991,0.000219,2]
[345539971,1734322238740,-8170.31368831,0.000219,2]
[345539972,1734322238930,-401.03313773,0.000219,2]
[345539973,1734322238942,-8085.7398262,0.000219,2]
[345539974,1734322238955,-9619.82426,0.000219,2]
[345539975,1734322238967,-3134.7,0.000219,2]
[345539976,1734322238982,-1428.16480927,0.000219,2]
[345539977,1734322238993,-263.84190539,0.000219,2]
[345539978,1734322239009,-113870.84163857,0.000219,2]
[345539979,1734322239018,-689.49401809,0.000219,2]
[345539980,1734322239028,-508.04,0.00021903,2]
[345539981,1734322239037,-500.18,0.00021905,2]
[345539982,1734322239047,-492.93,0.0002191,2]
[345539983,1734322239056,-500.0,0.00021916,2]
[345539984,1734322239066,-297.16032419,0.00021916,2]
[345539985,1734322239075,-500.0,0.00021916,2]
[345539986,1734322239085,-500.0,0.00021916,2]
[345539987,1734322239095,-500.0,0.00021916,2]
[345539988,1734322239104,-500.0,0.00021916,2]
[345539989,1734322239113,-217.39254462,0.00021916,2]
[345539990,1734322239123,-500.0,0.00021916,2]
[345539991,1734322239133,-500.0,0.00021916,2]
[345539992,1734322239142,-500.0,0.00021916,2]
[345539993,1734322239152,-500.0,0.00021916,2]
[345539994,1734322239161,-500.0,0.00021916,2]
[345539995,1734322239170,-493.6,0.00021917,2]
[345539996,1734322239180,-918.4262,0.00021917,2]
[345539997,1734322239189,-500.0,0.00021917,3]
[345539998,1734322239199,-501.7220479,0.00021917,3]
[345539999,1734322239208,-500.0,0.00021917,3]
[345540000,1734322239218,-500.0,0.00021917,3]
[345540001,1734322239227,-500.0,0.00021917,3]
[345540002,1734322239237,-500.0,0.00021917,3]
[345540003,1734322239247,-500.0,0.00021917,3]